Cogmind - Beta 9.5 @@@ ROGUE MODE // 2020.04.12 @ 01:10:29 Player: Omewes Result: Self-destructed Performance ------------- Evolutions (5) 2500 Regions Visited (12) 2400 Robots Destroyed (264) 1320 Value Destroyed (10611) 10611 Prototype IDs (5) 100 Alien Tech Used (0) 0 Bonus (3874) 3874 TOTAL SCORE: 20805 Bonus ------- High Alert Combat Kills 1800 Follower Combat Kills 383 Entered Garrisons 800 Used RIF Installer 1500 Friendly Fire -609 Cogmind --------- Core Integrity 607/1000 Matter 262/300 Energy 170/170 System Corruption 11% Temperature Cool (128) Movement Walking (150) Ox1 Location -5/Factory Parts ------- > --- POWER (2) -------- Micro Fission Core > --- PROPULSION (5) --- Carbon-fiber Leg Flexi-carbon Leg Flexi-carbon Leg > --- UTILITY (6) ------ Advanced Heat Sink Medium Storage Unit High-capacity Storage Unit Advanced Terrain Scan Processor Layered Heavy Armor Plating > --- WEAPON (4) ------- Mini Assault Cannon > --- INVENTORY (16) --- Advanced Heat Sink Advanced Heat Sink Advanced Heat Sink Long-range Terrain Scanner Advanced Targeting Computer Layered Heavy Armor Plating Layered Heavy Armor Plating Relay Coupler [NC] (29) Relay Coupler [NC] (34) Heavy Rocket Launcher Improved Remote Datajack Power Maul Peak State ------------ > --- POWER ------------ Improved Deuterium Engine Micro Fission Core > --- PROPULSION ------- Carbon-fiber Leg Carbon-fiber Leg Carbon-fiber Leg Carbon-fiber Leg Flexi-carbon Leg > --- UTILITY ---------- Advanced Heat Sink Medium Storage Unit High-capacity Storage Unit Advanced Terrain Scan Processor Layered Heavy Armor Plating > --- WEAPON ----------- Gauss Rifle KE Penetrator Heavy Shock Bomb Launcher Heavy Shock Bomb Launcher > --- INVENTORY -------- Carbon-fiber Leg Carbon-fiber Leg Advanced Heat Sink Advanced Heat Sink Advanced Heat Sink Long-range Terrain Scanner Advanced Targeting Computer Layered Heavy Armor Plating Relay Coupler [NC] Relay Coupler [NC] Relay Coupler [Grunt] Relay Coupler [Brawler] Heavy Rocket Launcher Improved Remote Datajack Power Maul [Rating: 78] Favorites ----------- Power Light Angular Momentum Engine Engine Light Angular Momentum Engine Power Core Micro Fission Core Reactor Light Antimatter Reactor Propulsion Light Treads Treads Light Treads Leg Carbon-fiber Leg Wheel Compact Wheel Utility Large Storage Unit Device Improved Heat Sink Storage Large Storage Unit Processor Advanced Terrain Scan Processor Hackware Hacking Suite Protection Improved Light Armor Plating Weapon Heavy Assault Rifle Energy Gun Advanced Beam Rifle Energy Cannon Advanced Beam Cannon Ballistic Gun Heavy Assault Rifle Ballistic Cannon Mini Assault Cannon Launcher Heavy Shock Bomb Launcher Special Weapon Remote Datajack Impact Weapon Power Maul Build | -11 -10 -9 -9 -9 -8 -8 -7 -7 -7 -6 -6 -5 ------- Run | Scr Mat Mat Sto Gar Mat Gar Fac Gar Fac Fac Gar Fac Slots Evolved 10 | . . 2 . . 2 . 2 . . 2 . 2 Power 1 | . . . . . . . . . . 1 . . Propulsion 3 | . . 1 . . . . 1 . . . . 1 Utility 4 | . . 1 . . 1 . 1 . . 1 . . Weapon 2 | . . . . . 1 . . . . . . 1 Parts Attached 317 | 7 12 13 2 12 14 25 53 43 36 2 24 74 Power 27 | 1 2 1 2 1 1 4 3 . 3 1 2 6 Engine 21 | 1 2 1 2 1 1 3 2 . 3 1 2 2 Core 5 | . . . . . . 1 1 . . . . 3 Reactor 1 | . . . . . . . . . . . . 1 Propulsion 93 | 2 1 3 . 2 3 6 15 19 8 . 6 28 Treads 31 | 2 1 3 . 2 3 5 3 . 6 . 6 . Leg 53 | . . . . . . 1 12 19 2 . . 19 Wheel 9 | . . . . . . . . . . . . 9 Hover . | . . . . . . . . . . . . . Flight . | . . . . . . . . . . . . . Utility 88 | 2 4 5 . 3 6 7 15 12 9 1 6 18 Device 60 | 1 3 3 . 3 3 7 9 10 7 1 5 8 Storage 7 | 1 1 1 . . 1 . 1 . 1 . . 1 Processor 4 | . . . . . 1 . 1 . 1 . . 1 Hackware 5 | . . 1 . . . . 3 1 . . . . Protection 12 | . . . . . 1 . 1 1 . . 1 8 Artifact . | . . . . . . . . . . . . . Weapon 109 | 2 5 4 . 6 4 8 20 12 16 . 10 22 Energy Gun 52 | 2 2 1 . 4 4 2 9 7 10 . 6 5 Energy Cannon 5 | . . 3 . 1 . . 1 . . . . . Ballistic Gun 30 | . 1 . . . . 6 7 4 . . 3 9 Ballistic Cannon 1 | . . . . . . . . . . . . 1 Launcher 9 | . 2 . . 1 . . . . . . . 6 Special Weapon 2 | . . . . . . . . 1 . . . 1 Impact Weapon 10 | . . . . . . . 3 . 6 . 1 . Slashing Weapon . | . . . . . . . . . . . . . Piercing Weapon . | . . . . . . . . . . . . . Special Melee Weapon . | . . . . . . . . . . . . . Unidentified Prototypes 4 | . . 1 . . . . 1 . 1 . . 1 Parts Lost 106 | . 5 2 . 3 4 10 18 12 . . 19 33 Power 7 | . 1 . . . . . 2 . . . 2 2 Propulsion 38 | . 1 1 . . . 4 7 6 . . 7 12 Utility 13 | . 1 . . 1 1 1 2 1 . . 2 4 Weapon 48 | . 2 1 . 2 3 5 7 5 . . 8 15 Highest Loss Streak 12 | . 5 1 . 2 3 3 6 5 . . 12 11 Average Slot Usage (%) 93 | . 96 98 99 99 95 97 90 98 99 100 72 87 Engine 6 | . 13 11 10 11 9 4 3 7 7 13 6 1 Core 1 | . . . . . . 4 2 . . . . 7 Treads 17 | . 27 31 33 33 27 21 8 . 25 26 12 . Leg 7 | . . . . . . 4 13 29 4 . . 11 Wheel 1 | . . . . . . . . . . . . 10 Device 14 | . 12 21 22 21 21 18 14 13 14 13 6 6 Storage 12 | . 14 11 11 11 9 9 12 15 15 13 13 11 Processor 6 | . . . . . 1 9 7 7 7 13 13 10 Energy Gun 10 | . 11 4 . 13 24 9 7 14 20 20 8 3 Energy Cannon 2 | . . 17 22 8 . . 1 . . . . . Ballistic Gun 6 | . 4 . . . . 16 12 5 . . 6 10 Launcher 1 | . 9 . . . . . . . . . . 3 Naked Turns . | . . . . . . . . . . . . . Heaviest Build 103 | 14 14 21 25 23 35 34 58 61 75 80 87 103 Greatest Support 88 | 40 43 69 69 69 69 63 60 60 82 82 88 85 Greatest Overweight (x) 19 | . . . . . . 1 4 1 1 . 19 19 Average Overweight (x) . | . . . . . . . . . . . 4 1 Largest Inventory Capacity 18 | 6 6 8 8 8 10 10 16 16 18 18 18 18 Average Capacity 13 | 5 6 7 8 8 9 10 14 16 17 18 18 17 Most Carried 18 | 2 6 8 8 8 10 9 14 16 18 17 18 18 Average Carried 11 | . 5 6 7 7 6 8 10 15 17 16 14 13 Final Capacity 18 | 6 6 8 8 8 10 10 16 16 18 18 18 16 Final Carried 18 | 2 6 7 8 6 9 9 14 16 18 16 13 14 Class Distribution -------------------- 22% | Scavenger-Mutant 22% | Scavenger-Gunner 20% | Scavenger-Skirmisher 18% | Mutant 5% | Commander-Mutant 4% | Bothacker-Mutant Dominant Class ---------------- Mutant | -10/Materials Mutant | -9/Materials Commander-Mutant | -9/Storage Scavenger-Mutant | -9/Garrison Scavenger-Skirmisher | -8/Materials Scavenger-Skirmisher | -8/Garrison Scavenger-Skirmisher | -7/Factory Scavenger-Gunner | -7/Garrison Scavenger-Mutant | -7/Factory Scavenger-Skirmisher | -6/Factory Bothacker-Mutant | -6/Garrison Scavenger-Gunner | -5/Factory Resources | -11 -10 -9 -9 -9 -8 -8 -7 -7 -7 -6 -6 -5 ----------- Run | Scr Mat Mat Sto Gar Mat Gar Fac Gar Fac Fac Gar Fac Matter Collected 5926 | 270 175 125 20 126 157 424 918 798 505 . 255 2153 Remotely . | . . . . . . . . . . . . . Salvage Created 12172 | 110 247 657 549 538 543 951 1404 1286 1186 . 932 3769 Parts 518 | 9 21 40 37 29 32 36 56 50 53 . 19 136 Haulers Intercepted 11 | . 1 2 1 . 1 . 1 . 3 . . 2 Recyclers Shooed 3 | . . . . . . . . . 1 . . 2 Parts Field Recycled . | . . . . . . . . . . . . . Retrieved Matter . | . . . . . . . . . . . . . Parts Self-Destructed . | . . . . . . . . . . . . . Prevented . | . . . . . . . . . . . . . Kills | -11 -10 -9 -9 -9 -8 -8 -7 -7 -7 -6 -6 -5 ------- Run | Scr Mat Mat Sto Gar Mat Gar Fac Gar Fac Fac Gar Fac Combat Hostiles Destroyed 196 | . 9 13 11 22 8 21 17 23 13 . 16 43 Melee 2 | . 2 . . . . . . . . . . . Guns 138 | . 5 4 . 7 8 20 15 21 13 . 13 32 Cannons 30 | . . 9 10 9 . . 1 . . . . 1 AOE 15 | . 2 . . 5 . . 1 . . . . 7 Classes Destroyed 16 | 2 5 3 1 . 1 2 1 . . . . 1 Worker 11 | . . . . . 1 . 3 . . . . 7 Builder 12 | . 1 2 . . 2 . . . . . . 7 Tunneler 5 | 3 1 . . . . . 1 . . . . . Hauler 11 | . 1 2 1 . 1 . 1 . 3 . . 2 Recycler 16 | 1 . 1 . . . . 3 . 6 . . 5 Mechanic 2 | . 1 . . . . . . . 1 . . . Operator 2 | . . 1 1 . . . . . . . . . Watcher 5 | . . 1 . . . . 1 . 2 . . 1 Swarmer 34 | . 6 6 3 12 . 4 . . 3 . . . Grunt 101 | . 3 5 3 10 2 10 8 22 7 . 8 23 Brawler 9 | . . . 1 . 1 . 3 . . . 1 3 Duelist 12 | . . . . . . 1 2 2 . . . 7 Protector 1 | . . . . . . . . . . . . 1 Sentry 26 | . . 2 4 . 5 5 1 1 1 . 5 2 Hunter 7 | . . . . . . 1 1 . . . 2 3 Programmer 10 | . . . . . . . 4 . 2 . . 4 Best Kill Streak 10 | 3 4 6 6 10 4 7 4 5 6 . 5 7 Combat Bots Only 10 | . 2 4 5 10 2 7 4 5 3 . 5 6 Max Kills in Single Turn 3 | 1 2 1 2 3 1 1 2 1 2 . 2 2 Gunslinging 1 | . . . . . . . . . . . 1 1 Exploded 3 | . 1 . . 3 . . 1 . . . . 2 Melee 1 | . 1 . . . . . . . . . . . Uniques/NPCs Destroyed . | . . . . . . . . . . . . . Combat | -11 -10 -9 -9 -9 -8 -8 -7 -7 -7 -6 -6 -5 -------- Run | Scr Mat Mat Sto Gar Mat Gar Fac Gar Fac Fac Gar Fac Damage Taken 16782 | . 664 345 155 636 482 1400 2130 1526 675 . 2893 5876 Core 1711 | . 158 54 12 66 30 120 188 160 28 . 502 393 Absorbed by Shields 13 | . . . . . . . . 13 . . . . Core Remaining (%) 60 | 100 36 . . 67 . 72 . . 46 . 40 . Volleys Fired 651 | 11 21 39 17 46 38 79 85 85 42 . 40 148 Largest 4 | 2 2 2 2 2 3 3 3 3 3 . 3 4 Hottest 217 | 100 100 136 136 136 161 161 191 210 204 . 204 217 Shots Fired 1623 | 22 42 76 34 88 97 180 243 200 124 . 110 407 Gun 1372 | 22 36 22 . 28 97 180 229 196 124 . 110 328 Cannon 215 | . . 54 34 57 . . 14 . . . . 56 Launcher 32 | . 6 . . 3 . . . . . . . 23 Special 4 | . . . . . . . . 4 . . . . Kinetic 598 | . . . . . . 70 112 80 . . 18 318 Thermal 909 | 22 36 76 34 85 97 110 71 96 124 . 92 66 Explosive 10 | . 6 . . 3 . . . . . . . 1 Electromagnetic 102 | . . . . . . . 60 20 . . . 22 Robot Hit Streak 37 | 6 8 25 18 13 18 24 15 16 17 . 20 37 Robot Miss Streak 6 | 3 5 5 2 2 2 4 6 4 4 . 3 3 Penetration Max 1 | . . . . . . . . . . . . 1 Secondary Targets 25 | . 1 . . . . 3 4 7 . . 6 4 Max Gunslinging Chain 1 | . 1 . . . . 1 1 1 . . 1 1 Shots Hit Robots 1144 | 15 18 48 21 45 70 124 180 139 81 . 98 305 Core Hits 534 | 5 21 22 12 24 23 45 75 58 42 . 63 144 Critical Hits 24 | . . 2 5 2 . 1 . 1 . . . 13 Critical Kills 10 | . . 1 2 1 . 1 . . . . . 5 Critical Parts Destroyed 12 | . . 1 2 1 . . . 1 . . . 7 Melee Attacks 45 | . . . . . . . 6 . 31 . 5 3 Impact 45 | . . . . . . . 6 . 31 . 5 3 Slashing . | . . . . . . . . . . . . . Piercing . | . . . . . . . . . . . . . Sneak Attacks 2 | . . . . . . . . . . . . 2 Combat Hostiles . | . . . . . . . . . . . . . Follow-up Attacks . | . . . . . . . . . . . . . Damage Inflicted 23148 | 179 520 837 450 943 827 1740 3059 2093 1711 . 1816 8973 Guns 17603 | 179 200 200 . 241 827 1740 2488 2049 1535 . 1733 6411 Cannons 2680 | . . 637 450 405 . . 218 . . . . 970 Explosions 2526 | . 292 . . 297 . . 351 44 176 . . 1366 Melee 302 | . . . . . . . . . . . 83 219 Ramming 37 | . 28 . . . . . 2 . . . . 7 Kinetic 9203 | . . . . . . 683 1310 747 . . 305 6158 Thermal 10958 | 179 200 837 450 646 827 1057 955 1098 1711 . 1428 1570 Explosive 1024 | . 292 . . 297 . . 293 . . . . 142 Electromagnetic 1624 | . . . . . . . 499 248 . . . 877 Impact 302 | . . . . . . . . . . . 83 219 Slashing . | . . . . . . . . . . . . . Piercing . | . . . . . . . . . . . . . Highest Corruption 12 | . 2 . 1 1 . . 11 11 12 . . 11 Average Corruption 6 | . 2 . 1 1 . . 3 11 11 . . 6 Corruption Purged . | . . . . . . . . . . . . . Effects 325 | . 11 . 1 6 . . 29 78 128 . . 72 Message Errors 56 | . 3 . 1 1 . . 3 13 27 . . 8 Matter Fused 47 | . . . . . . . 5 12 18 . . 12 Heat Flow Errors 24 | . 1 . . . . . 2 5 9 . . 7 Energy Discharges 29 | . 4 . . 1 . . 3 4 10 . . 7 Parts Rejected 2 | . . . . . . . . . . . . 2 Data Loss (minor) 31 | . 3 . . 3 . . 3 5 15 . . 2 Data Loss (major) 14 | . . . . . . . . 3 9 . . 2 Misfires 3 | . . . . . . . 1 . 2 . . . Alerts 3 | . . . . . . . . . 3 . . . Misdirections 21 | . . . . . . . . 4 17 . . . Targeting Errors 88 | . . . . 1 . . 11 30 17 . . 29 Weapon Failures 7 | . . . . . . . 1 2 1 . . 3 Overload Shots . | . . . . . . . . . . . . . Overflow Damage 313 | . . 1 . 3 . . 78 . 62 . 39 130 Projectiles 26 | . . 1 . . . . 17 . . . . 8 Explosions 128 | . . . . 3 . . 61 . 62 . . 2 Melee 159 | . . . . . . . . . . . 39 120 Knockbacks 20 | . . . . . . . . . . . . 20 Impact 1 | . . . . . . . . . . . . 1 Kinetic 17 | . . . . . . . . . . . . 17 Secondary 2 | . . . . . . . . . . . . 2 Self-Inflicted Damage 421 | . 39 . . 48 . . 195 32 . . . 107 Shots 9 | . 2 . . 1 . . 2 1 . . . 3 Rammed 12 | . 11 . . . . . 1 . . . . . Targets Rammed 15 | . 12 . . . . . 2 . . . . 1 Kicked 2 | . . . . . . . 1 . . . . 1 Crushed 1 | . 1 . . . . . . . . . . . Highest Temperature 395 | 255 199 135 225 132 328 150 371 365 395 . 359 379 Average Temperature 68 | 138 50 37 63 40 90 54 87 74 50 . 136 72 Received Heat Transfer 4632 | . 147 75 36 195 189 576 453 747 174 . 606 1434 Effects 7 | . . . . . . . 1 1 . . 5 . Interference 5 | . . . . . . . . . . . 5 . Matter Decay 1 | . . . . . . . . 1 . . . . Damage (minor) 1 | . . . . . . . 1 . . . . . Siege Activations . | . . . . . . . . . . . . . Robots Corrupted 2 | . . . . . . . . . . . . 2 Combat Hostiles 2 | . . . . . . . . . . . . 2 Parts Fried 19 | . . . . . . . 7 1 . . 4 7 Impact Corruptions 6 | . . . . . . . . . . . 2 4 Robots Melted 7 | . . . 1 1 . 1 . 2 . . 1 1 Combat Hostiles 7 | . . . 1 1 . 1 . 2 . . 1 1 Parts Melted 46 | 1 . 3 2 2 3 5 6 4 6 . 7 7 Heat Transferred 23187 | 518 592 1739 814 1346 2032 2666 1937 2583 3087 . 3194 2679 Parts Sabotaged . | . . . . . . . . . . . . . Parts Stolen . | . . . . . . . . . . . . . Parts Stripped . | . . . . . . . . . . . . . Power Chain Reactions 4 | . . . . . . . 1 1 . . . 2 Missiles Intercepted . | . . . . . . . . . . . . . Alert | -11 -10 -9 -9 -9 -8 -8 -7 -7 -7 -6 -6 -5 ------- Run | Scr Mat Mat Sto Gar Mat Gar Fac Gar Fac Fac Gar Fac Peak Influence 1257 | 20 223 246 536 1257 811 876 472 827 602 294 515 1039 Average Influence 418 | 10 56 69 246 937 687 738 229 601 376 294 431 442 Maximum Alert Level 4 | . 1 1 2 4 3 3 2 3 2 1 2 3 Low Security (%) 29 | 100 93 97 43 . . . 63 . 1 . . 22 Level 1 23 | . 6 2 33 10 . . 18 13 55 100 20 37 Level 2 30 | . . . 22 14 68 39 17 59 42 . 79 16 Level 3 14 | . . . . 41 31 60 . 26 . . . 23 Level 4 2 | . . . . 33 . . . . . . . . Level 5 . | . . . . . . . . . . . . . High Security . | . . . . . . . . . . . . . Max Security . | . . . . . . . . . . . . . Squads Dispatched 38 | . 1 3 . . 4 . 8 . 10 . . 12 Investigation 3 | . . 1 . . . . . . 1 . . 1 Extermination 10 | . . . . . . . 5 . 2 . . 3 Reinforcement 9 | . 1 2 . . 1 . 1 . 1 . . 3 Assault 2 | . . . . . . . . . . . . 2 Garrison 14 | . . . . . 3 . 2 . 6 . . 3 Intercept . | . . . . . . . . . . . . . Construction Impeded 2 | . . . . . . . . . . . . 2 Haulers Reinforced 2 | . . . . . . . . . 1 . . 1 Stealth | -11 -10 -9 -9 -9 -8 -8 -7 -7 -7 -6 -6 -5 --------- Run | Scr Mat Mat Sto Gar Mat Gar Fac Gar Fac Fac Gar Fac Distress Signals 15 | . 1 4 2 . 2 . 2 . 1 . . 3 Communications Jammed . | . . . . . . . . . . . . . Distress Signals . | . . . . . . . . . . . . . Times Spotted 312 | . 16 25 28 29 12 24 32 27 25 . 17 77 Peak Tracking Total 9 | . 5 6 7 9 3 7 4 7 3 . 6 7 Tactical Retreats 20 | . 2 1 1 3 1 . . 3 . . 3 6 Traps | -11 -10 -9 -9 -9 -8 -8 -7 -7 -7 -6 -6 -5 ------- Run | Scr Mat Mat Sto Gar Mat Gar Fac Gar Fac Fac Gar Fac Traps Triggered 14 | . 1 1 1 . . . 3 4 2 . 2 . Indirectly . | . . . . . . . . . . . . . Trap Hack Attempts . | . . . . . . . . . . . . . Triggered . | . . . . . . . . . . . . . Disarmed . | . . . . . . . . . . . . . Reprogrammed . | . . . . . . . . . . . . . Reused . | . . . . . . . . . . . . . Traps Extracted . | . . . . . . . . . . . . . Installed . | . . . . . . . . . . . . . Triggered . | . . . . . . . . . . . . . Machines | -11 -10 -9 -9 -9 -8 -8 -7 -7 -7 -6 -6 -5 ---------- Run | Scr Mat Mat Sto Gar Mat Gar Fac Gar Fac Fac Gar Fac Machines Disabled 36 | . 1 . 2 3 . 2 5 4 9 . 2 8 Max in Single Turn 7 | . 1 . 1 2 . 2 3 2 7 . 1 5 Garrison Relay 5 | . . . . 1 . . . 2 . . 2 . Phase Generator 3 | . . . . 1 . 1 . 1 . . . . Machines Sabotaged . | . . . . . . . . . . . . . Garrisons Compromised . | . . . . . . . . . . . . . Overloaded Fab Kills . | . . . . . . . . . . . . . Fab Network Shutdowns . | . . . . . . . . . . . . . Hacking | -11 -10 -9 -9 -9 -8 -8 -7 -7 -7 -6 -6 -5 --------- Run | Scr Mat Mat Sto Gar Mat Gar Fac Gar Fac Fac Gar Fac Machines Accessed 36 | . 3 2 7 . 3 . 8 . 10 1 . 2 Terminals 24 | . 2 2 6 . 2 . 4 . 7 . . 1 Fabricators 2 | . . . . . . . 1 . 1 . . . Repair Stations 2 | . . . . . . . 2 . . . . . Recycling Units 1 | . 1 . . . . . . . . . . . Scanalyzers 1 | . . . . . . . . . 1 . . . Garrison Access 6 | . . . 1 . 1 . 1 . 1 1 . 1 Total Hacks 93 | . 5 7 25 . 9 . 18 . 21 1 . 7 Successful 51 | . 2 2 18 . 6 . 11 . 7 1 . 4 Failed 42 | . 3 5 7 . 3 . 7 . 14 . . 3 Catastrophic 12 | . . . 2 . . . 1 . 8 . . 1 Database Lockouts . | . . . . . . . . . . . . . Manual 58 | . 1 4 17 . 8 . 8 . 14 . . 6 Terminals 66 | . 3 7 22 . 7 . 11 . 14 . . 2 Fabricators 3 | . . . . . . . 2 . 1 . . . Repair Stations 3 | . . . . . . . 3 . . . . . Recycling Units 2 | . 2 . . . . . . . . . . . Scanalyzers 2 | . . . . . . . . . 2 . . . Garrison Access 17 | . . . 3 . 2 . 2 . 4 1 . 5 Terminal Hacks 14 | . . 2 6 . . . 4 . 2 . . . Record 1 | . . . . . . . 1 . . . . . Part Schematic 1 | . . . . . . . 1 . . . . . Open Door 2 | . . . 2 . . . . . . . . . Branch Access Points 1 | . . 1 . . . . . . . . . . Terminal Index 2 | . . . 1 . . . 1 . . . . . Unreport Threat 2 | . . 1 . . . . 1 . . . . . Locate Traps 3 | . . . 2 . . . . . 1 . . . Hauler Manifests 1 | . . . . . . . . . 1 . . . Zone Layout 1 | . . . 1 . . . . . . . . . Fabricator Hacks 2 | . . . . . . . 2 . . . . . Load Schematic 1 | . . . . . . . 1 . . . . . Build 1 | . . . . . . . 1 . . . . . Repair Station Hacks . | . . . . . . . . . . . . . Recycling Unit Hacks 1 | . 1 . . . . . . . . . . . Retrieve Components 1 | . 1 . . . . . . . . . . . Scanalyzer 1 | . . . . . . . . . 1 . . . Insert Component 1 | . . . . . . . . . 1 . . . Garrison Access Hacks 5 | . . . 1 . 1 . 1 . . 1 . 1 Unlock Access 5 | . . . 1 . 1 . 1 . . 1 . 1 Unauthorized Hacks 68 | . 2 2 24 . 13 . 9 . 9 . . 9 Terminals 19 | . 1 . 10 . 4 . 3 . 1 . . . Track 6 | . 1 . 3 . 1 . 1 . . . . . Assimilate 2 | . . . 1 . 1 . . . . . . . Botnet 5 | . . . 4 . 1 . . . . . . . Operators 6 | . . . 2 . 1 . 2 . 1 . . . Fabricators . | . . . . . . . . . . . . . Repair Stations . | . . . . . . . . . . . . . Recycling Units . | . . . . . . . . . . . . . Scanalyzers . | . . . . . . . . . . . . . Garrison Access 9 | . . . 1 . 1 . 1 . 3 . . 3 Broadcast 4 | . . . 1 . 1 . . . 1 . . 1 Redirect 1 | . . . . . . . . . . . . 1 Reprogram 2 | . . . . . . . 1 . 1 . . . Intercept 1 | . . . . . . . . . . . . 1 Watchers 1 | . . . . . . . . . 1 . . . Data Cores Recovered . | . . . . . . . . . . . . . Used . | . . . . . . . . . . . . . Hacking Detections 30 | . 1 2 6 . 3 . 7 . 9 . . 2 Full Trace Events 1 | . . . . . . . . . 1 . . . Feedback Events . | . . . . . . . . . . . . . Feedback Blocked . | . . . . . . . . . . . . . Robot Schematics Acquired . | . . . . . . . . . . . . . Robots Built . | . . . . . . . . . . . . . Matter . | . . . . . . . . . . . . . Time . | . . . . . . . . . . . . . Total Robot Build Rating . | . . . . . . . . . . . . . Part Schematics Acquired 1 | . . . . . . . 1 . . . . . Parts Built 1 | . . . . . . . 1 . . . . . Matter 212 | . . . . . . . 212 . . . . . Time 53 | . . . . . . . 53 . . . . . Total Part Build Rating 6 | . . . . . . . 6 . . . . . Parts Repaired . | . . . . . . . . . . . . . Time . | . . . . . . . . . . . . . Parts Recycled . | . . . . . . . . . . . . . Recycled Matter . | . . . . . . . . . . . . . Retrieved Matter . | . . . . . . . . . . . . . Retrieved Components 10 | . 10 . . . . . . . . . . . Parts Scanalyzed . | . . . . . . . . . . . . . Part Schematics Acquired . | . . . . . . . . . . . . . Parts Damaged . | . . . . . . . . . . . . . Bothacking | -11 -10 -9 -9 -9 -8 -8 -7 -7 -7 -6 -6 -5 ------------ Run | Scr Mat Mat Sto Gar Mat Gar Fac Gar Fac Fac Gar Fac Used RIF Installer 3 | . . . . 1 . 1 . 1 . . . . Coupler Efficiency 1 | . . . . . . 1 . . . . . . Patrol Navigation 1 | . . . . . . . . 1 . . . . Robots Hacked 3 | . . . . . . . . 3 . . . . Non-combat . | . . . . . . . . . . . . . Combat 3 | . . . . . . . . 3 . . . . Robot Hacks Applied 3 | . . . . . . . . 3 . . . . spike_heat 1 | . . . . . . . . 1 . . . . formatsys_high 2 | . . . . . . . . 2 . . . . Relay Couplers Released 22 | . . . . 5 . . . 7 . . 10 . Machine Destruction 22 | . . . . 5 . . . 7 . . 10 . Attached 1 | . . . . . . . . 1 . . . . Robots Rewired . | . . . . . . . . . . . . . Allies Hacked . | . . . . . . . . . . . . . Hacks Repelled . | . . . . . . . . . . . . . Allies | -11 -10 -9 -9 -9 -8 -8 -7 -7 -7 -6 -6 -5 -------- Run | Scr Mat Mat Sto Gar Mat Gar Fac Gar Fac Fac Gar Fac Total Allies 18 | . . . 10 . 1 . 2 2 3 . . . Largest Group 10 | . . . 10 5 1 . 2 2 3 . . . Highest-Rated Group 88 | . . . 88 48 26 . 50 32 48 . . . Highest-Rated Ally 30 | . . . 16 16 26 . 30 16 16 . . . Total Orders 2 | . . . . 2 . . . . . . . . GOTO 1 | . . . . 1 . . . . . . . . AID 1 | . . . . 1 . . . . . . . . Ally Attacks 85 | . . . 46 20 . . 1 3 15 . . . Total Damage 962 | . . . 506 193 . . 36 26 201 . . . Kills 20 | . . . 10 8 . . 1 . 1 . . . Allies Corrupted . | . . . . . . . . . . . . . Allies Melted . | . . . . . . . . . . . . . Intel | -11 -10 -9 -9 -9 -8 -8 -7 -7 -7 -6 -6 -5 ------- Run | Scr Mat Mat Sto Gar Mat Gar Fac Gar Fac Fac Gar Fac Robot Analysis Total . | . . . . . . . . . . . . . Derelict Logs Recovered . | . . . . . . . . . . . . . Drone Launches . | . . . . . . . . . . . . . Drone Recoveries . | . . . . . . . . . . . . . Exploration | -11 -10 -9 -9 -9 -8 -8 -7 -7 -7 -6 -6 -5 ------------- Run | Scr Mat Mat Sto Gar Mat Gar Fac Gar Fac Fac Gar Fac Turns Passed 14361 | 138 966 901 618 1156 493 1210 2321 1032 2335 23 1096 2072 Spaces Moved 6340 | 60 526 424 306 523 187 472 990 408 1182 13 234 1015 Core 67 | 9 . . . . . . . . . . 50 8 Treads 4377 | 51 526 424 306 523 187 472 615 . 1076 13 184 . Legs 1211 | . . . . . . . 375 408 106 . . 322 Wheels 685 | . . . . . . . . . . . . 685 Hover . | . . . . . . . . . . . . . Flight . | . . . . . . . . . . . . . Fastest Speed 50 | 50 160 160 160 160 160 160 120 120 150 158 158 96 Average Speed 163 | 143 160 160 160 160 160 160 168 146 163 158 340 130 Slowest Speed 1000 | 160 160 160 160 160 160 180 240 150 185 158 1000 1000 Overloaded Moves . | . . . . . . . . . . . . . Propulsion Burnouts . | . . . . . . . . . . . . . Robots Hopped . | . . . . . . . . . . . . . Cave-ins Triggered . | . . . . . . . . . . . . . Exploration Rate (%) 41 | 5 89 38 48 93 15 71 20 64 35 1 41 14 Regions Visited 12 Branch Regions 1 Pre-discovered Areas . | . . . . . . . . . . . . . Known Exits Taken 6 | . . 1 1 . 1 . 1 . 1 1 . . Unknown Exits Taken 2 | 1 1 . . . . . . . . . . . Scrap Searched . | . . . . . . . . . . . . . Spaces Dug 21 | . . . . . . . 3 . 18 . . . Terrain Destroyed 467 | . 34 . . 79 . 7 60 84 60 . 1 142 Melee 21 | . . . . . . . 3 . 18 . . . Projectile 31 | . . . . . . . . . . . 1 30 AOE 415 | . 34 . . 79 . 7 57 84 42 . . 112 Actions | -11 -10 -9 -9 -9 -8 -8 -7 -7 -7 -6 -6 -5 --------- Run | Scr Mat Mat Sto Gar Mat Gar Fac Gar Fac Fac Gar Fac Total 8942 | 86 601 576 403 755 303 775 1433 684 1440 15 440 1431 Wait 1234 | 7 16 77 72 167 46 180 255 91 98 . 94 131 Move 6328 | 59 525 423 305 521 186 471 989 407 1181 13 233 1015 Hop . | . . . . . . . . . . . . . Pick Up 106 | 2 7 10 3 3 6 6 17 10 20 . 7 15 Fast Attach 127 | 7 8 3 2 1 8 8 23 11 8 . 5 43 Attach 74 | . 1 5 . 6 5 8 11 7 1 2 9 19 Detach 58 | . 1 4 . 1 7 6 12 5 1 . . 21 Swap 116 | . 3 5 . 5 1 9 19 25 27 . 10 12 Drop 135 | . 7 10 4 5 6 8 14 22 29 . 7 23 Fire 651 | 11 21 39 17 46 38 79 85 85 42 . 40 148 Melee 45 | . . . . . . . 6 . 31 . 5 3 Ram . | . . . . . . . . . . . . . Kick 3 | . . . . . . . 2 . . . . 1 Crush 12 | . 12 . . . . . . . . . . . Escape Stasis 51 | . . . . . . . . 19 2 . 30 . Rewire 2 | . . . . . . . . 2 . . . . Trap . | . . . . . . . . . . . . . Miscellaneous . | . . . . . . . . . . . . . Route ------- -11/Scrapyard -10/Materials (discovered 5 exits: *Mat x3 / [*Min x2]) -9/Materials (discovered 4 exits: *Mat / *Min / *Sto x2) -9/Storage -9/Garrison (discovered 3 exits: *Mat x3) -8/Materials -8/Garrison (discovered 2 exits: *Fac x2) -7/Factory (discovered 2 exits: [*Low] / Gar) -7/Garrison (discovered 2 exits: *Fac x2) -7/Factory (discovered 3 exits: *Fac x2 / [*Low]) -6/Factory -6/Garrison -5/Factory (discovered 1 exit: Gar) History --------- Turn | Location | Event 7 | -11/Scrapyard | Discovered new exit (range 16) 139 | -11/Scrapyard | Entered Materials 306 | -10/Materials | Discovered new exit (range 16) 311 | -10/Materials | Build established: Mutant 448 | -10/Materials | Core integrity fell below 50% 490 | -10/Materials | Lost 5 parts (1p1n1u2w) 635 | -10/Materials | Discovered new exit (range 3) 719 | -10/Materials | Discovered new exit (range 16) 918 | -10/Materials | Discovered new exit (range 8) 1020 | -10/Materials | Discovered new exit (range 15) 1105 | -10/Materials | Entered another Materials area 1105 | -9/Materials | Evolved 2 slots: Propulsion x1, Utility x1 1462 | -9/Materials | Discovered new exit (range 6) 1513 | -9/Materials | Discovered new exit (range 8) 1718 | -9/Materials | Discovered new exit (range 16) 1853 | -9/Materials | Identified exit to Mines 1853 | -9/Materials | Identified exit to Storage 2006 | -9/Materials | Entered Storage 2139 | -9/Storage | Assisted by bots powering up and referring to "LRC-V3" 2239 | -9/Storage | Identified exit to Garrison 2431 | -9/Storage | Build established: Commander-Mutant 2624 | -9/Storage | Entered Garrison 2624 | -9/Garrison | Accompanied by 5 allies 2678 | -9/Garrison | Phase Generator disabled 2793 | -9/Garrison | Garrison Relay disabled 2804 | -9/Garrison | Triggered checkpoint 2900 | -9/Garrison | Triggered checkpoint 2904 | -9/Garrison | Triggered checkpoint 2941 | -9/Garrison | Destroyed 10 combat bots 2965 | -9/Garrison | Discovered new exit (range 10) 2996 | -9/Garrison | Triggered checkpoint 3015 | -9/Garrison | Triggered checkpoint 3296 | -9/Garrison | Triggered checkpoint 3345 | -9/Garrison | Discovered new exit (range 10) 3347 | -9/Garrison | Build established: Scavenger-Mutant 3396 | -9/Garrison | Triggered checkpoint 3476 | -9/Garrison | Triggered checkpoint 3572 | -9/Garrison | Discovered new exit (range 9) 3609 | -9/Garrison | Installed Relay Interface Framework 3780 | -9/Garrison | Entered Materials 3780 | -8/Materials | Evolved 2 slots: Utility x1, Weapon x1 3973 | -8/Materials | Identified exit to Garrison 4034 | -8/Materials | Garrison activated, responded to threat 4194 | -8/Materials | Lost 3 parts (3w) 4273 | -8/Materials | Entered Garrison 4419 | -8/Garrison | Phase Generator disabled 4710 | -8/Garrison | Triggered checkpoint 4729 | -8/Garrison | Triggered checkpoint 4773 | -8/Garrison | Triggered checkpoint 4774 | -8/Garrison | Lost 3 parts (2n1w) 4794 | -8/Garrison | Destroyed 7 combat bots 5024 | -8/Garrison | Discovered new exit (range 8) 5317 | -8/Garrison | Discovered new exit (range 13) 5355 | -8/Garrison | Build established: Scavenger-Skirmisher 5368 | -8/Garrison | Expanded RIF knowledge: Coupler Efficiency 5483 | -8/Garrison | Entered Factory 5483 | -7/Factory | Evolved 2 slots: Propulsion x1, Utility x1 5740 | -7/Factory | Discovered new exit (range 3) 6816 | -7/Factory | Lost 6 parts (3n3w) 7007 | -7/Factory | Fabricated Adv. Cooling System? 7268 | -7/Factory | Lost 3 parts (1u2w) 7400 | -7/Factory | Build established: Scavenger-Gunner 7452 | -7/Factory | Identified exit to Garrison 7605 | -7/Factory | Garrison activated, responded to threat 7716 | -7/Factory | System corruption reached 10% 7749 | -7/Factory | Lost 3 parts (1p2n) 7804 | -7/Factory | Entered Garrison 7868 | -7/Garrison | Phase Generator disabled 7894 | -7/Garrison | Triggered checkpoint 7947 | -7/Garrison | Garrison Relay disabled 8084 | -7/Garrison | Triggered checkpoint 8150 | -7/Garrison | Triggered checkpoint 8246 | -7/Garrison | Discovered new exit (range 10) 8276 | -7/Garrison | Triggered checkpoint 8341 | -7/Garrison | Lost 4 parts (1n1u2w) 8355 | -7/Garrison | Garrison Relay disabled 8428 | -7/Garrison | Triggered checkpoint 8605 | -7/Garrison | Lost 5 parts (3n2w) 8606 | -7/Garrison | Triggered checkpoint 8754 | -7/Garrison | Discovered new exit (range 9) 8776 | -7/Garrison | Expanded RIF knowledge: Patrol Navigation 8836 | -7/Garrison | Entered Factory 9547 | -7/Factory | Garrison activated, responded to threat 9991 | -7/Factory | Discovered new exit (range 20) 10145 | -7/Factory | Discovered new exit (range 18) 10308 | -7/Factory | Build established: Scavenger-Mutant 10542 | -7/Factory | Discovered new exit (range 22) 10561 | -7/Factory | Core integrity fell below 50% 10682 | -7/Factory | Garrison activated, responded to threat 11170 | -7/Factory | Identified exit to Factory 11171 | -7/Factory | Entered another Factory area 11171 | -6/Factory | Evolved 2 slots: Power x1, Utility x1 11194 | -6/Factory | Identified exit to Garrison 11194 | -6/Factory | Entered Garrison 11236 | -6/Garrison | Triggered checkpoint 11258 | -6/Garrison | Garrison Relay disabled 11403 | -6/Garrison | Triggered checkpoint 11454 | -6/Garrison | Lost 3 parts (3w) 11500 | -6/Garrison | Triggered checkpoint 11610 | -6/Garrison | Lost 4 parts (2n2w) 11693 | -6/Garrison | Discovered new exit (range 9) 11734 | -6/Garrison | Triggered checkpoint 11777 | -6/Garrison | Core integrity fell below 50% 11797 | -6/Garrison | Lost 12 parts (2p5n2u3w) 11906 | -6/Garrison | Garrison Relay disabled 12216 | -6/Garrison | Build established: Bothacker-Mutant 12280 | -6/Garrison | Identified exit to Factory 12290 | -6/Garrison | Entered Factory 12290 | -5/Factory | Evolved 2 slots: Propulsion x1, Weapon x1 12789 | -5/Factory | Lost 3 parts (1n2u) 13048 | -5/Factory | Build established: Scavenger-Gunner 13051 | -5/Factory | Identified exit to Garrison 13261 | -5/Factory | Garrison activated, responded to threat 13366 | -5/Factory | Lost 4 parts (2n1u1w) 13474 | -5/Factory | Lost 7 parts (3n1u3w) 13865 | -5/Factory | System corruption reached 10% 14090 | -5/Factory | First assault squad dispatched 14282 | -5/Factory | Lost 11 parts (2p4n5w) 14362 | -5/Factory | Self-destructed Last Messages --------------- 14307_ Acquired 7 matter. 14310_ K-01 Serf collects debris. 14331_ Acquired Mic. Fission Core. 14332_ Dropped Lyr. Heavy Armor Plating. 14336_ System corrupted: Matter fused (-8). 14347_ Penetrated by Slug. 14347_ Carbon-fiber Leg destroyed. 14347_ Slug penetrates Wall. 14351_ U-05 Engineer builds a Wall. 14353_ Door malfunctions. 14353_ Slug penetrates Wall. 14353_ Slug penetrates P-70 Sage. 14355_ Door malfunctions. 14355_ Assembly Bed disabled. 14356_ Penetrated by Slug. 14358_ R-10 Processor collects Lyr. Heavy Armor Plating. 14360_ Penetrated by Slug. 14360_ Plasma Rifle destroyed. 14360_ P-70 Sage knocked back. 14361_ System corrupted: Lgt. Antimatter Reactor rejected. Map ----- +----------------------------------------------------+ | ????????# /!!! #????#####??##?R ? ??### | | ????????# #%= #???#?#???####?"" ?### | | ????????# #[ #?????#?#?#?##? ? #### | | ????????### ###| !! #?????####????##??##?#?## | | ??????????# #?# ! #?????# #??#???#?######?# | | ??????????# #?# !! ########???##??##?####### ? | | ??????????# #?########## #??????#?????????# ? | | ??????????# #???# #!! ! #???????#######??? " | | ??????????#+######### # ! !! #????????????##?##?? | | ??????????# # !!*#??????????????????? | | ??????????# % # |!=##?????????????????? | | ??????????# # %% !!##?????????????????? | | ??????????# ###+####??????????????????? | | ??????????# # # #%#???????????????????? | | ??????????# # # ## #??????????????????? | | ??????????# # # ### #?????????????????? | | ??????????# # #%##############????????? | | ??????????# # # #????????? | | ??????????# ###!#""" #????????? | | ??????????# #?# #"R #????????? | | ??????????# #?# #""" #????????? | | ??????????#######+######## #""" #????????? | | ???????????#### R R # R #????????? | | ?????????? g i # #????????? | | ?????????? g u u/ """"" #????????? | | ?????????? %g p @ # """""" #????????? | | ???????????#### p / """""" #????????? | | ?????????? # %h ######## """""" #????????? | | ??????????????# ???????# #????????? | | ??????????????# ?????????##############????????? | | ??????????????# ????????????????????????????????? | | ??????????????# ?????????????????????????????????? | | ??????????????#??????????????????????????????????? | | ?????????????????????????????????????????????????? | | ?????????????????????????????????????????????????? | | ?????????????????????????????????????????????????? | | ?????????????????????????????????????????????????? | | ?????????????????????????????????????????????????? | | ?????????????????????????????????????????????????? | | ?????????????????????????????????????????????????? | | ?????????????????????????????????????????????????? | | ?????????????????????????????????????????????????? | | ?????????????????????????????????????????????????? | | ?????????????????????????????????????????????????? | | ?????????????????????????????????????????????????? | | ?????????????????????????????????????????????????? | | ?????????????????????????????????????????????????? | | ?????????????????????????????????????????????????? | | ?????????????????????????????????????????????????? | | ?????????????????????????????????????????????????? | +----------------------------------------------------+ Best States ------------- Heat Dissipation 95 Energy Generation 34 Energy Capacity 480 Matter Stores 300 Matter Capacity 300 Sight Range 16 Terrain Scan Range 24 Terrain Scan Density 210 Armor Coverage 600 Evasion (%) 40 Targeting Accuracy 8 Recoil Reduction 4 Offensive Hacking 30 Item Schematics ----------------- Adv. Cooling System | -7/Factory | Hacked Robot Schematics ------------------ None Fabricated ------------ Adv. Cooling System | x1 | -7/Factory Alien Tech Used ----------------- None Achievements -------------- None Challenges ------------ None Game ------ Seed TerrabombLinearCasing Manual? 0 Play Time 02:05:44 Cumulative 201.6 hours Start 2020.04.11 @ 13:45:22 End 2020.04.12 @ 01:10:29 Sessions 5 Manual Loads 0 Difficulty Rogue Special Mode None Game No. 146 Rogue 146 Adventurer 0 Explorer 0 Win Type - Total 9 Types 4/0/1/1/0/2/1 Lore% 75 Gallery% 79 Achievement% 71 Wizard Run 0 Options --------- ASCII 0 Keyboard 1 Movement Numpad Keybinds 0 Fullscreen 1 Font 12/Terminus Map View 83x54 Tactical HUD 1 Map Filters NONE Filters LOW_CONTRAST(13,24,33) Steam 1 RUN: f248a19d-2914-46bc-a083-7ddcc9289318